bitfinex/quotes_BTCUSD_20240911
["timestamp","ask_amount","ask_price","bid_price","bid_amount"]
[1726080018172,0.0046145,57935.0,57934.0,0.86531652]
[1726080018399,0.0046145,57935.0,57934.0,1.21053652]
[1726080028661,0.0046145,57935.0,57934.0,1.66795652]
[1726080028867,0.0046145,57935.0,57934.0,1.94412607]
[1726080030313,0.0046145,57935.0,57934.0,1.96712607]
[1726080030548,0.0046145,57935.0,57934.0,2.03182607]
[1726080031604,0.0046145,57935.0,57934.0,2.03413811]
[1726080033272,0.0046145,57935.0,57934.0,2.37935811]
[1726080033524,0.0046145,57935.0,57934.0,2.40235811]
[1726080035898,0.0046145,57935.0,57934.0,2.4020295]
[1726080036737,0.0046145,57935.0,57934.0,1.9461095]
[1726080038264,0.0046145,57935.0,57934.0,1.31251995]
[1726080038483,0.0046145,57935.0,57934.0,1.21251995]
[1726080039192,0.1240145,57935.0,57934.0,0.00457856]
[1726080039617,0.0940145,57935.0,57934.0,0.51783]
[1726080039828,0.0046145,57935.0,57934.0,0.57432258]
[1726080040712,0.0046145,57935.0,57934.0,0.79312258]
[1726080041150,0.0046145,57935.0,57934.0,0.88242258]
[1726080041392,0.0046145,57935.0,57934.0,0.67432258]
[1726080042467,0.0046145,57935.0,57934.0,0.62219984]
[1726080042720,0.0046145,57935.0,57934.0,0.00436984]
[1726080042935,0.0046145,57935.0,57934.0,0.17697984]
[1726080043149,0.0046145,57935.0,57934.0,0.17261]
[1726080043391,0.0046145,57935.0,57934.0,0.52221874]
[1726080043633,0.0046145,57935.0,57934.0,0.86743874]
[1726080045020,0.0046145,57935.0,57934.0,0.52221874]
[1726080045780,0.0066145,57935.0,57934.0,0.00438874]
[1726080045980,0.0954145,57935.0,57934.0,0.00438874]
[1726080046208,0.002,57934.0,57933.0,0.517838]
[1726080046456,0.002,57934.0,57923.0,0.346922]
[1726080046702,0.002,57934.0,57932.0,0.172614]
[1726080046907,0.002,57934.0,57933.0,0.172613]
[1726080047418,0.032,57934.0,57931.0,0.345237]
[1726080047651,0.03,57934.0,57933.0,0.172613]
[1726080047924,0.03,57934.0,57932.0,0.172616]
[1726080048191,0.03,57934.0,57916.0,0.05149955]
[1726080048192,0.60792,57924.0,57916.0,0.05149955]
[1726080048453,1.1649,57924.0,57916.0,0.05149955]
[1726080048702,2.20377732,57924.0,57916.0,0.05149955]
[1726080048932,2.20377732,57924.0,57909.0,0.12874888]
[1726080048933,0.437363,57910.0,57909.0,0.12874888]
[1726080049196,1.6990593,57910.0,57909.0,0.12874888]
[1726080049427,0.234684,57909.0,57908.0,0.23174799]
[1726080049650,0.002,57901.0,57894.0,0.172727]
[1726080049881,0.172718,57898.0,57891.0,0.51989914]
[1726080050108,0.0891,57899.0,57895.0,0.172725]
[1726080050364,0.172719,57898.0,57892.0,0.172733]
[1726080050604,0.002,57893.0,57892.0,0.172733]
[1726080050852,0.002,57893.0,57892.0,0.172735]
[1726080051119,0.002,57893.0,57892.0,0.518205]
[1726080051597,0.0891,57899.0,57895.0,0.345447]
[1726080051840,0.0891,57899.0,57892.0,0.0863691]
[1726080051841,0.03,57903.0,57893.0,0.00340548]
[1726080052055,0.032,57907.0,57903.0,0.1727]
[1726080052509,0.002,57904.0,57903.0,0.1727]
[1726080052950,0.02707895,57907.0,57902.0,0.34881388]
[1726080053170,0.02707895,57907.0,57906.0,0.51808]
[1726080053378,0.05707895,57907.0,57906.0,0.51808]
[1726080053607,0.02707895,57907.0,57906.0,1.208854]
[1726080053834,0.02707895,57907.0,57906.0,1.308854]
[1726080054066,0.02707895,57907.0,57906.0,0.963467]
[1726080054336,0.15533805,57913.0,57912.0,0.172675]
[1726080054592,0.05707597,57915.0,57914.0,0.172669]
[1726080054822,0.02707597,57915.0,57914.0,0.518008]
[1726080055061,0.03,57921.0,57920.0,0.172651]
[1726080055291,0.0897,57926.0,57920.0,0.3625681]
[1726080055526,0.06,57921.0,57920.0,0.0172651]
[1726080055720,0.06,57924.0,57921.0,0.0043779]
[1726080055955,0.02707064,57925.0,57922.0,0.00340051]
[1726080056070,0.02707064,57925.0,57924.0,0.51792]
[1726080056533,0.02707064,57925.0,57924.0,0.52228647]
[1726080056744,0.02707064,57925.0,57924.0,0.17700647]
[1726080057188,0.02707064,57925.0,57924.0,0.52228647]
[1726080059153,0.05907064,57925.0,57924.0,0.52228647]
[1726080059389,0.23170764,57925.0,57924.0,0.00436647]
[1726080059604,0.05907064,57925.0,57924.0,0.00436647]
[1726080059811,0.05907064,57925.0,57921.0,0.172647]
[1726080059812,0.002,57922.0,57921.0,0.172647]
[1726080060226,0.002,57922.0,57921.0,0.863241]
[1726080060432,0.02707064,57925.0,57924.0,0.51792]
[1726080060646,0.02707064,57925.0,57924.0,1.32478]
[1726080060855,0.02707064,57925.0,57924.0,0.8632]
[1726080061064,0.03,57930.0,57920.0,0.1163]
[1726080061295,0.03,57930.0,57929.0,0.172625]
[1726080061482,0.03,57931.0,57930.0,0.517863]
[1726080061692,0.03,57931.0,57917.0,0.0961]
[1726080061693,0.06,57931.0,57917.0,0.0961]
[1726080061952,0.03,57928.0,57927.0,0.172631]
[1726080062154,0.03,57928.0,57918.0,0.00961]
[1726080062155,0.002,57929.0,57928.0,0.172628]
[1726080062358,0.09,57930.0,57927.0,0.172629]
[1726080062814,0.092,57930.0,57926.0,0.345266]
[1726080063021,0.03,57927.0,57925.0,0.172636]
[1726080063236,0.002,57925.0,57924.0,0.00164]
[1726080063807,0.002,57925.0,57924.0,0.17428]
[1726080064012,0.032,57925.0,57924.0,0.00164]
[1726080064216,0.03,57925.0,57924.0,0.00164]
[1726080064419,0.03,57925.0,57924.0,0.17428]
[1726080064636,0.03,57928.0,57925.0,0.172635]
[1726080064840,0.0570705,57930.0,57929.0,0.172625]
[1726080065044,0.0570705,57930.0,57925.0,0.345269]
[1726080065414,0.0570705,57930.0,57927.0,0.172631]
[1726080065415,0.03,57928.0,57927.0,0.172631]
[1726080065840,0.002,57925.0,57924.0,0.00164]
[1726080066064,0.002,57925.0,57924.0,0.174277]
[1726080066270,0.002,57925.0,57924.0,0.00164]
[1726080066480,0.032,57925.0,57924.0,0.00164]
[1726080066911,0.204637,57925.0,57924.0,0.00164]
[1726080067126,0.032,57925.0,57924.0,0.00164]
[1726080067336,0.03,57925.0,57924.0,0.00164]
[1726080067546,0.549911,57925.0,57924.0,0.00164]
[1726080067974,0.895185,57925.0,57924.0,0.00164]
[1726080068168,1.159685,57925.0,57924.0,0.00164]
[1726080068302,1.504959,57925.0,57924.0,0.00164]
[1726080068723,1.159685,57925.0,57924.0,0.00164]
[1726080068924,0.814411,57925.0,57924.0,0.00164]
[1726080069158,0.09,57925.0,57924.0,0.17428]
[1726080069356,0.09,57925.0,57924.0,0.191708]
[1726080069558,0.817911,57925.0,57924.0,0.00595475]
[1726080069815,1.22235955,57925.0,57924.0,0.00164]
[1726080070025,1.22235955,57925.0,57884.0,0.05132747]
[1726080070026,0.032,57901.0,57887.0,0.465099]
[1726080070232,0.032,57901.0,57892.0,0.00394692]
[1726080070464,0.06,57907.0,57902.0,0.172705]
[1726080070465,0.03,57905.0,57902.0,0.172705]
[1726080070683,0.02703922,57918.0,57909.0,0.345369]
[1726080070684,0.03,57916.0,57909.0,0.345369]
[1726080070789,0.02707821,57912.0,57911.0,0.518035]
[1726080071031,0.02707821,57912.0,57911.0,0.52200828]
[1726080071870,0.03,57913.0,57912.0,0.172675]
[1726080072090,0.03,57914.0,57913.0,0.172672]
[1726080072306,0.06,57914.0,57913.0,0.172672]
[1726080072511,0.03,57910.0,57897.0,0.0955]
[1726080072941,0.03,57906.0,57905.0,0.172694]
[1726080073149,0.03,57901.0,57900.0,0.172711]
[1726080073352,0.03,57901.0,57891.0,0.0955]
[1726080073566,0.03,57899.0,57898.0,0.518152]
[1726080074179,0.1521,57905.0,57898.0,0.518152]
[1726080074180,0.03,57902.0,57901.0,0.172708]
[1726080074396,0.03,57906.0,57905.0,0.518089]
[1726080074599,0.09,57906.0,57905.0,0.863482]
[1726080075015,0.1170781,57906.0,57905.0,0.863482]
[1726080075228,0.0270781,57906.0,57905.0,1.2806653]
[1726080075847,0.0270781,57906.0,57905.0,0.863482]
[1726080076056,0.0570781,57906.0,57905.0,0.863482]
[1726080076267,0.0270781,57906.0,57905.0,0.863482]
[1726080078578,0.0290781,57906.0,57905.0,0.863482]
[1726080078789,0.0270781,57906.0,57905.0,0.863482]
[1726080080057,0.0270781,57906.0,57905.0,0.9843706]
[1726080080867,0.0270781,57906.0,57905.0,1.208875]
[1726080081305,0.06,57913.0,57912.0,0.863377]
[1726080081552,0.08543166,57913.0,57912.0,0.863377]
[1726080081731,0.09,57913.0,57912.0,0.863377]
[1726080081974,0.002,57915.0,57914.0,0.863347]
[1726080082167,0.09,57915.0,57914.0,0.518008]
[1726080082372,0.09,57915.0,57914.0,0.863347]
[1726080082606,0.002,57918.0,57908.0,0.0892]
[1726080082607,0.09,57916.0,57915.0,0.863332]
[1726080083024,0.06,57916.0,57915.0,0.863332]
[1726080083266,0.09,57916.0,57915.0,0.863332]
[1726080083511,0.09,57916.0,57915.0,0.9842009]
[1726080084370,0.08907296,57918.0,57917.0,0.863302]
[1726080084591,0.14454037,57918.0,57917.0,0.517981]
[1726080084843,0.14454037,57918.0,57917.0,0.61679923]
[1726080085060,0.14454037,57918.0,57917.0,0.52197508]
[1726080085284,0.14454056,57918.0,57917.0,0.52197508]
[1726080085912,0.14454056,57918.0,57917.0,0.17665408]
[1726080086123,0.14454056,57918.0,57917.0,0.52197508]
[1726080086558,0.14458813,57918.0,57917.0,0.52197508]
[1726080086744,0.14458813,57918.0,57917.0,0.64323989]
[1726080086984,0.14458813,57918.0,57917.0,0.00399408]
[1726080087417,0.03,57905.0,57904.0,0.172699]
[1726080087626,0.03,57905.0,57904.0,0.518098]
[1726080088044,0.03,57905.0,57904.0,0.172699]
[1726080088456,0.03,57905.0,57904.0,0.518098]
[1726080088851,0.03,57905.0,57904.0,0.172699]
[1726080089061,0.03,57905.0,57904.0,0.518098]
[1726080089276,0.03,57905.0,57899.0,0.345428]
[1726080089480,0.03,57905.0,57904.0,0.172699]
[1726080090132,0.05542831,57905.0,57904.0,0.172699]
[1726080091600,0.05542831,57905.0,57903.0,0.1727]
[1726080091812,0.05542831,57905.0,57895.0,0.1175]
[1726080091813,0.03,57899.0,57898.0,0.172717]
[1726080092024,0.03,57899.0,57898.0,0.518152]
[1726080092241,0.0553052,57899.0,57898.0,0.172717]
[1726080092931,0.05525319,57899.0,57898.0,0.518152]
[1726080093356,0.03,57899.0,57898.0,0.518152]
[1726080093574,0.03,57902.0,57899.0,0.345426]
[1726080093796,0.03,57902.0,57901.0,0.172708]
[1726080094006,0.05517078,57902.0,57901.0,0.172708]
[1726080094425,0.03,57899.0,57898.0,0.0963597]
[1726080094643,0.03,57899.0,57898.0,0.172717]
[1726080094848,0.03,57899.0,57894.0,0.1]
[1726080094849,0.03,57899.0,57896.0,0.345446]
[1726080095074,0.03,57899.0,57897.0,0.345441]
[1726080095291,0.05708007,57899.0,57898.0,0.172717]
[1726080095497,0.03,57896.0,57893.0,0.172729]
[1726080095715,0.03,57892.0,57885.0,0.1117]
[1726080095939,0.03,57892.0,57874.0,0.3493695]
[1726080095940,0.29870921,57892.0,57874.0,0.0037945]
[1726080096157,1.24219258,57892.0,57874.0,0.0037945]
[1726080096420,1.72566017,57892.0,57874.0,0.0037945]
[1726080096646,0.03,57876.0,57875.0,0.518356]
[1726080096871,0.06,57881.0,57876.0,0.13876366]
[1726080097096,0.03,57883.0,57882.0,0.518295]
[1726080097312,0.10333523,57887.0,57886.0,0.172753]
[1726080097313,0.05166761,57887.0,57886.0,0.172753]
[1726080097523,0.07875613,57892.0,57886.0,0.1117]
[1726080097781,0.02708852,57892.0,57891.0,0.172738]
[1726080097984,0.09,57898.0,57897.0,0.518161]
[1726080098408,0.09,57898.0,57897.0,0.5219171]
[1726080098840,0.03,57898.0,57897.0,0.5219171]
[1726080099064,0.02708414,57900.0,57899.0,0.863572]
[1726080099065,0.08708414,57900.0,57899.0,0.863572]
[1726080099295,0.02708414,57900.0,57899.0,0.71657581]
[1726080099477,0.05708414,57900.0,57899.0,0.52188577]
[1726080099927,0.03,57905.0,57899.0,0.52188577]
[1726080100205,0.09,57905.0,57904.0,0.172699]
[1726080100433,0.11512243,57905.0,57904.0,0.172699]
[1726080100645,0.08512243,57905.0,57904.0,0.52184077]
[1726080100903,0.05512243,57905.0,57904.0,0.52184077]
[1726080101154,0.02707881,57906.0,57904.0,0.52184077]
[1726080101155,0.02707881,57906.0,57905.0,0.518089]
[1726080101369,0.02707881,57906.0,57905.0,0.863482]
[1726080101585,0.02707881,57906.0,57905.0,1.21260428]
[1726080101798,0.13116904,57918.0,57905.0,1.21260428]
[1726080101799,0.11166761,57920.0,57918.0,0.345315]
[1726080102011,0.09,57919.0,57918.0,0.517972]
[1726080102406,0.09,57919.0,57918.0,0.52170128]
[1726080102673,0.09,57919.0,57918.0,0.17638628]
[1726080103654,0.09,57919.0,57918.0,0.00372928]
[1726080103862,0.262654,57919.0,57918.0,0.00372928]
[1726080104080,0.262654,57919.0,57901.0,0.1184]
[1726080104081,0.06,57913.0,57910.0,0.172681]
[1726080104302,0.06,57913.0,57904.0,0.345396]
[1726080104541,0.345336,57915.0,57911.0,0.00372928]
[1726080104542,0.608028,57912.0,57911.0,0.00372928]
[1726080104770,0.608028,57912.0,57902.0,0.01184]
[1726080104771,0.06,57909.0,57903.0,0.345403]
[1726080104997,0.03,57902.0,57901.0,0.345414]
[1726080105244,0.03,57902.0,57901.0,0.518122]
[1726080106867,0.08707829,57907.0,57904.0,0.518098]
[1726080106868,0.03,57905.0,57904.0,0.518098]
[1726080107099,0.02707829,57907.0,57906.0,0.172693]
[1726080107341,0.05707829,57907.0,57906.0,0.51808]
[1726080107576,0.02707829,57907.0,57906.0,0.57022842]
[1726080107871,0.08707829,57907.0,57906.0,0.57022842]
[1726080108347,0.11707829,57907.0,57906.0,0.51808]
[1726080108820,0.08707829,57907.0,57906.0,0.51808]
[1726080109053,0.11707829,57907.0,57906.0,0.51808]
[1726080109784,0.05707829,57907.0,57906.0,0.863467]
[1726080110011,0.05707829,57907.0,57906.0,0.51808]
[1726080110251,0.02707829,57907.0,57906.0,0.863467]
[1726080110488,0.02707829,57907.0,57906.0,1.2952026]
[1726080110729,0.02707829,57907.0,57906.0,0.9498156]
[1726080110970,0.09,57911.0,57910.0,0.518044]
[1726080111189,0.09,57911.0,57909.0,0.172683]
[1726080111426,0.09,57911.0,57898.0,0.0938]
[1726080111427,0.09,57911.0,57910.0,0.518044]
[1726080113496,0.09,57911.0,57910.0,0.863407]
[1726080113885,0.06,57911.0,57910.0,0.863407]
[1726080114225,0.05707672,57914.0,57910.0,0.0863407]
[1726080114460,0.06,57915.0,57914.0,0.345339]
[1726080114461,0.03,57915.0,57914.0,0.345339]
[1726080114886,0.03,57915.0,57914.0,0.34903614]
[1726080115109,0.03,57915.0,57914.0,0.52170514]
[1726080115676,0.03,57915.0,57914.0,0.86704414]
[1726080116322,0.09,57917.0,57916.0,0.51799]
[1726080116531,0.09,57917.0,57916.0,0.88961167]
[1726080116755,0.09,57917.0,57916.0,0.54428467]
[1726080116980,0.09,57917.0,57916.0,0.54798181]
[1726080117383,0.09,57917.0,57916.0,0.52168714]
[1726080120203,0.09,57917.0,57916.0,0.00369714]
[1726080120454,0.09,57917.0,57916.0,0.52168714]
[1726080120727,0.09,57917.0,57916.0,0.51799]
[1726080120969,0.05707327,57918.0,57917.0,0.517981]
[1726080121205,0.05707327,57918.0,57917.0,0.863302]
[1726080121206,0.02707327,57918.0,57917.0,0.863302]
[1726080121431,0.02707327,57918.0,57917.0,1.208623]
[1726080121687,0.02707327,57918.0,57917.0,1.21230135]
[1726080121962,0.02716327,57918.0,57917.0,1.21230135]
[1726080122192,9e-05,57918.0,57917.0,1.36267893]
[1726080122918,9e-05,57918.0,57917.0,1.56225342]
[1726080123658,9e-05,57918.0,57917.0,1.68105342]
[1726080125331,9e-05,57918.0,57917.0,2.02637442]
[1726080125602,0.00082,57924.0,57923.0,0.92980149]
[1726080125862,0.00082,57924.0,57923.0,1.27508649]
[1726080126094,0.00082,57924.0,57923.0,1.72402329]
[1726080130072,0.00082,57924.0,57923.0,1.73564841]
[1726080131282,0.00082,57924.0,57923.0,1.75864841]
[1726080131505,0.00082,57924.0,57923.0,2.28010296]
[1726080137671,0.48095563,57947.0,57923.0,1.07160596]
[1726080137883,0.172579,57945.0,57941.0,0.172589]
[1726080138095,0.172579,57945.0,57942.0,0.172586]
[1726080138318,0.172581,57944.0,57942.0,0.0035833]
[1726080138786,0.02706281,57945.0,57942.0,0.1761693]
[1726080139005,0.19964081,57945.0,57942.0,0.0035833]
[1726080139430,0.02706281,57945.0,57942.0,0.0035833]
[1726080139839,0.02706281,57945.0,57935.0,0.19957449]
[1726080140063,0.02706281,57945.0,57943.0,0.0035833]
[1726080140279,0.02706281,57945.0,57943.0,0.172581]
[1726080140483,0.02706281,57945.0,57942.0,0.172585]
[1726080140691,0.02706281,57945.0,57940.0,0.345181]
[1726080140894,0.02706281,57945.0,57941.0,0.3487583]
[1726080141107,0.02706281,57945.0,57942.0,0.172583]
[1726080141572,0.19963981,57945.0,57943.0,0.0035833]
[1726080142001,0.02512565,57944.0,57941.0,0.172587]
[1726080142215,0.19963981,57945.0,57941.0,0.172587]
[1726080142421,0.02512071,57944.0,57942.0,0.172585]
[1726080142665,0.02706281,57945.0,57944.0,0.17258]
[1726080142872,0.02706281,57945.0,57944.0,0.51774]
[1726080143115,0.02706281,57945.0,57944.0,0.8629]
[1726080143317,0.0886,57947.0,57946.0,0.517722]
[1726080144022,0.05528418,57952.0,57951.0,0.862797]
[1726080144023,0.0037945,57952.0,57951.0,0.862797]
[1726080144245,0.0037945,57952.0,57948.0,0.345135]
[1726080144464,0.0037945,57952.0,57951.0,0.17612379]
[1726080144687,0.0037945,57952.0,57951.0,0.517678]
[1726080144911,0.0037945,57952.0,57951.0,0.52122943]
[1726080145828,0.0037945,57952.0,57951.0,0.00355143]
[1726080146078,0.52577791,57952.0,57951.0,0.00355143]
[1726080146311,0.52577791,57952.0,57938.0,0.19957449]
[1726080146312,0.23755496,57952.0,57936.0,0.01995745]
[1726080146566,0.02535189,57951.0,57942.0,0.19957449]
[1726080146818,0.19791389,57950.0,57947.0,0.17257]
[1726080147025,0.02535189,57950.0,57949.0,0.172565]
[1726080147245,0.02535189,57950.0,57948.0,0.17611819]
[1726080147464,0.02535189,57949.0,57948.0,0.172568]
[1726080147687,0.17256,57951.0,57947.0,0.172571]
[1726080147688,0.02535189,57950.0,57947.0,0.172571]
[1726080147944,0.02535189,57950.0,57946.0,0.345145]
[1726080147945,0.03615979,57949.0,57948.0,0.517705]
[1726080148194,0.02535189,57949.0,57948.0,0.517705]
[1726080148439,0.02539529,57951.0,57950.0,0.345125]
[1726080148686,0.0037945,57952.0,57951.0,1.207916]
[1726080148927,0.0037945,57952.0,57951.0,1.35587452]
[1726080149177,0.0037945,57952.0,57951.0,1.70099352]
[1726080149679,0.0037945,57952.0,57951.0,1.35587452]
[1726080149883,0.0037945,57952.0,57951.0,1.207916]
[1726080153759,0.0037945,57952.0,57951.0,0.172559]
[1726080154007,0.0037945,57952.0,57948.0,0.172566]
[1726080154299,0.0037945,57952.0,57937.0,0.02332575]
[1726080154300,0.40171664,57951.0,57943.0,0.345166]
[1726080154514,0.02535664,57950.0,57947.0,0.17257]
[1726080154756,0.02535664,57950.0,57949.0,0.172565]
[1726080154993,0.02535664,57950.0,57945.0,0.345154]
[1726080155469,0.02535664,57950.0,57948.0,0.172566]
[1726080155703,0.19791964,57950.0,57944.0,0.345157]
[1726080155917,0.376359,57951.0,57944.0,0.34516]
[1726080156175,0.376359,57951.0,57934.0,0.1]
[1726080156176,0.02972507,57950.0,57937.0,0.19957449]
[1726080156440,0.02972507,57950.0,57937.0,0.40968065]
[1726080156710,0.2038,57951.0,57942.0,0.172584]
[1726080156711,0.172576,57946.0,57942.0,0.172584]
[1726080157183,0.02533898,57945.0,57941.0,0.345178]
[1726080157410,0.02706062,57946.0,57945.0,0.172577]
[1726080157671,0.02706062,57946.0,57945.0,1.208039]
[1726080157916,0.03615641,57949.0,57948.0,0.862842]
[1726080158157,0.03615641,57949.0,57948.0,1.54497514]
[1726080159035,0.03615641,57949.0,57948.0,1.65706579]
[1726080159261,0.03615641,57949.0,57948.0,1.65906579]
[1726080159502,0.03615641,57949.0,57948.0,2.00754322]
[1726080159758,0.03615641,57949.0,57948.0,1.66240622]
[1726080160221,0.03615641,57949.0,57948.0,2.00754322]
[1726080160692,0.0037945,57952.0,57951.0,0.862797]
[1726080160908,0.0037945,57952.0,57951.0,1.02903312]
[1726080161137,0.0037945,57952.0,57951.0,1.37415212]
[1726080161358,0.0037945,57952.0,57951.0,1.87761155]
[1726080162767,0.0046145,57952.0,57951.0,1.87761155]
[1726080163866,0.0046145,57952.0,57951.0,1.47749255]
[1726080164294,0.0046145,57952.0,57951.0,1.31125643]
[1726080164761,0.0046145,57952.0,57951.0,0.96613743]
[1726080164972,0.0046145,57952.0,57951.0,0.17589943]
[1726080165227,0.0046145,57952.0,57951.0,0.86613743]
[1726080165452,0.0046145,57952.0,57951.0,1.55637543]
[1726080165688,0.0046145,57952.0,57951.0,1.38721542]
[1726080166123,0.0046145,57952.0,57951.0,1.60871542]
[1726080166531,0.0046145,57952.0,57951.0,1.95383442]
[1726080167264,0.0046145,57952.0,57951.0,1.95583442]
[1726080167904,0.0046145,57952.0,57951.0,2.00883442]
[1726080169242,0.0046145,57952.0,57951.0,1.70161542]
[1726080170352,0.0046145,57952.0,57951.0,2.04673442]
[1726080170564,0.0046145,57952.0,57951.0,2.06973442]
[1726080170759,0.0046145,57952.0,57951.0,2.09973442]
[1726080170975,0.0046145,57952.0,57951.0,2.10173442]
[1726080171638,0.0046145,57952.0,57951.0,2.07173442]
[1726080172285,0.0046145,57952.0,57951.0,2.06973442]
[1726080174953,0.0046145,57952.0,57951.0,1.43275643]
[1726080175346,0.0046145,57952.0,57951.0,1.31125643]
[1726080175547,0.0046145,57952.0,57951.0,1.21125643]
[1726080176571,0.0046145,57952.0,57951.0,0.86613743]
[1726080177236,0.66647011,57952.0,57951.0,0.00334043]
[1726080177711,0.66647011,57952.0,57947.0,0.00164]
[1726080177712,0.172568,57948.0,57947.0,0.00164]
[1726080177924,0.54309161,57948.0,57947.0,0.00164]
[1726080178139,0.88822861,57948.0,57947.0,0.00164]
[1726080178597,0.92609784,57948.0,57947.0,0.00164]
[1726080179452,1.26042673,57948.0,57947.0,0.00164]
[1726080179707,1.37227288,57948.0,57947.0,0.00164]
[1726080179914,1.37227288,57948.0,57923.0,0.174281]
[1726080179915,0.367522,57930.0,57923.0,0.174281]
[1726080180164,0.172634,57927.0,57923.0,0.00164]
[1726080180376,0.1949,57930.0,57925.0,0.51989914]
[1726080180593,0.345217,57935.0,57927.0,0.172631]
[1726080180594,0.02707035,57928.0,57927.0,0.172631]
[1726080180803,0.02707035,57928.0,57927.0,0.71746749]
[1726080181016,0.02707035,57928.0,57927.0,1.13498017]
[1726080181224,0.02707035,57928.0,57927.0,0.59014368]
[1726080181655,0.02707035,57928.0,57927.0,1.13498017]
[1726080181875,0.1726,57938.0,57928.0,0.345251]
[1726080182100,0.00431525,57938.0,57923.0,0.00164]
[1726080182363,0.1192,57929.0,57923.0,0.00164]
[1726080182589,0.0896,57932.0,57923.0,0.00164]
[1726080182798,0.4225053,57937.0,57923.0,0.00164]
[1726080182799,0.02536581,57931.0,57925.0,0.0934]
[1726080183000,0.1192,57939.0,57925.0,0.0934]
[1726080183001,0.05158331,57943.0,57931.0,0.19957449]
[1726080183207,0.05158331,57943.0,57925.0,0.0934]
[1726080183208,0.0254087,57942.0,57932.0,0.02335458]
[1726080183419,0.0953,57949.0,57942.0,0.19957449]
[1726080183642,0.267867,57949.0,57938.0,0.19957449]
[1726080183854,0.33649634,57948.0,57919.0,0.01210955]
[1726080184076,0.17264,57924.0,57919.0,0.01210955]
[1726080184283,0.345244,57930.0,57919.0,0.01210955]
[1726080184494,0.345258,57928.0,57919.0,0.01210955]
[1726080184704,0.34524,57931.0,57913.0,0.19957449]
[1726080184931,0.345259,57928.0,57913.0,0.19957449]
[1726080185155,0.345259,57928.0,57909.0,0.71947363]
[1726080185156,0.51792,57924.0,57909.0,0.71947363]
[1726080185565,0.17264,57924.0,57909.0,0.71947363]
[1726080185778,0.51792,57924.0,57917.0,0.172659]
[1726080186005,0.51792,57924.0,57912.0,0.345345]
[1726080186006,1.0754,57924.0,57912.0,0.345345]
[1726080186268,0.75572868,57924.0,57912.0,0.345345]
[1726080186492,0.75572868,57924.0,57911.0,0.345355]
[1726080186493,1.10100868,57924.0,57913.0,0.17267]
[1726080186909,0.75572868,57924.0,57915.0,0.345332]
[1726080187134,0.75572868,57924.0,57914.0,0.345336]
[1726080187343,0.73012,57924.0,57917.0,0.172659]
[1726080187577,0.73012,57924.0,57914.0,0.345336]
[1726080187799,0.73012,57924.0,57917.0,0.172659]
[1726080188015,0.0973,57924.0,57920.0,0.345299]
[1726080188216,0.1138,57928.0,57923.0,0.03994211]
[1726080188438,0.12486913,57929.0,57928.0,0.172628]
[1726080188653,0.12486913,57929.0,57924.0,0.345277]
[1726080188654,0.02706913,57929.0,57924.0,0.345277]
[1726080188915,0.02706913,57929.0,57928.0,0.517884]
[1726080189136,0.02706913,57929.0,57928.0,1.19304638]
[1726080189351,0.02706913,57929.0,57928.0,1.53830238]
[1726080189561,0.05158331,57941.0,57939.0,0.172594]
[1726080189773,0.05158331,57942.0,57941.0,0.517767]
[1726080189998,0.0975,57945.0,57937.0,0.27448115]
[1726080190207,0.02706337,57942.0,57941.0,0.17619834]
[1726080190411,0.02706337,57942.0,57941.0,0.172589]
[1726080190627,0.02706337,57942.0,57941.0,0.17619784]
[1726080191255,0.02706337,57942.0,57941.0,0.00360884]
[1726080192568,0.02706337,57942.0,57938.0,0.345196]
[1726080193048,0.02706337,57942.0,57939.0,0.00360884]
[1726080193489,0.02706337,57942.0,57939.0,0.17620284]
[1726080193938,0.02706337,57942.0,57941.0,0.862945]
[1726080194169,0.02706337,57942.0,57941.0,0.79224815]
[1726080194394,0.02706337,57942.0,57941.0,0.79583489]
[1726080194621,0.00082,57947.0,57946.0,0.172574]
[1726080194863,0.00082,57947.0,57944.0,0.172578]
[1726080195090,0.00082,57947.0,57946.0,0.00358878]
[1726080195520,0.00082,57947.0,57946.0,1.48608793]
[1726080195714,0.00082,57947.0,57946.0,1.63503626]
[1726080196473,0.00082,57947.0,57946.0,0.34873678]
[1726080196706,0.863675,57947.0,57946.0,0.00358878]
[1726080196958,0.173391,57947.0,57946.0,0.00358878]
[1726080197202,0.00082,57947.0,57943.0,0.345166]
[1726080197432,0.00082,57947.0,57946.0,0.86643923]
[1726080197659,0.00082,57947.0,57946.0,0.86287]
[1726080197883,0.00082,57947.0,57946.0,0.52129199]
[1726080198126,0.00082,57947.0,57946.0,0.9022996]
[1726080198354,0.00082,57947.0,57946.0,1.2474476]
[1726080198577,0.00082,57947.0,57946.0,1.3645476]
[1726080199308,0.00082,57947.0,57946.0,1.4562476]
[1726080199529,0.00082,57947.0,57946.0,0.86643999]
[1726080200462,0.00082,57947.0,57946.0,0.52129199]
[1726080200692,0.02787737,57947.0,57946.0,0.86643999]
[1726080201148,0.00082,57947.0,57946.0,0.86643999]
[1726080201616,0.00082,57947.0,57946.0,1.21158799]
[1726080202506,0.00082,57947.0,57946.0,1.60722794]
[1726080204368,0.00082,57947.0,57946.0,2.05437594]
[1726080204607,0.00082,57947.0,57946.0,2.16707594]
[1726080205098,0.00182,57947.0,57946.0,2.16707594]
[1726080205605,0.00082,57947.0,57946.0,2.16707594]
[1726080205855,0.00182,57947.0,57946.0,2.16707594]
[1726080206300,0.00182,57947.0,57946.0,2.0918993]
[1726080207045,0.00182,57947.0,57946.0,1.7467513]
[1726080207317,0.00182,57947.0,57946.0,0.00356999]
[1726080207790,0.00182,57947.0,57946.0,0.172574]
[1726080208039,0.00182,57947.0,57946.0,0.1759169]
[1726080208345,0.02787812,57947.0,57946.0,0.0033429]
[1726080208535,0.20044912,57947.0,57946.0,0.0033429]
[1726080208760,0.172575,57946.0,57941.0,0.345176]
[1726080208986,0.02787812,57947.0,57946.0,0.0033429]
[1726080208987,0.54559112,57947.0,57946.0,0.0033429]
[1726080209208,0.172576,57946.0,57941.0,0.172587]